Cogmind - Beta 15 @@@ ROGUE MODE // 2025.06.01 @ 14:32:37 Player: KaiserChief Result: Destroyed self via exploding Fusion Modulator Performance ------------- Evolutions (2) 1000 Regions Visited (3) 600 Robots Destroyed (48) 240 Value Destroyed (1119) 1119 Prototype IDs (2) 40 Alien Tech Used (0) 0 Bonus (0) 0 TOTAL SCORE: 2999 Bonus ------- None Cogmind --------- Core Integrity 0/550 Matter 238/300 Energy 20/100 System Corruption 0% Temperature Cool (12) Movement Flying (105) Ox1 Location -8/Materials Parts ------- > --- POWER (1) -------- (None) > --- PROPULSION (3) --- Improved VTOL Module > --- UTILITY (5) ------ Advanced Weight Redist. System Machine Analyzer Improved Signal Interpreter Terrain Scan Processor > --- WEAPON (2) ------- Shock Bomb Launcher > --- INVENTORY (5) ---- Aluminum Leg Improved Aluminum Leg Advanced Visual Processing Unit Light Armor Plating Particle Gun Peak State ------------ > --- POWER ------------ Light Deuterium Engine > --- PROPULSION ------- Flight Unit Improved Flight Unit Improved Flight Unit > --- UTILITY ---------- Machine Analyzer Improved Signal Interpreter Terrain Scan Processor Hacking Suite > --- WEAPON ----------- Beam Cannon Ion Cannon > --- INVENTORY -------- Aluminum Leg Flight Unit Advanced Visual Processing Unit Mini Grenade Launcher [Rating: 25] Favorites ----------- Power Light Deuterium Engine Engine Light Deuterium Engine Power Core Light Nuclear Core Propulsion Improved Flight Unit Leg Improved Aluminum Leg Wheel Compact Wheel Flight Unit Improved Flight Unit Utility Machine Analyzer Device Seismic Detector Storage Small Storage Unit Processor Machine Analyzer Hackware Hacking Suite Protection Light Armor Plating Weapon Light Assault Rifle Energy Gun Medium Laser Energy Cannon Beam Cannon Ballistic Gun Light Assault Rifle Launcher Mini Grenade Launcher Build | -11 -10 -9 -8 ------- Run | Yrd Mat Mat Mat Slots Evolved 4 | . . 2 2 Power . | . . . . Propulsion 1 | . . 1 . Utility 3 | . . 1 2 Weapon . | . . . . Parts Attached 47 | 7 10 11 19 Power 5 | 1 1 2 1 Engine 4 | 1 1 2 . Core 1 | . . . 1 Reactor . | . . . . Propulsion 19 | 2 7 3 7 Treads . | . . . . Leg 2 | . . . 2 Wheel 2 | 2 . . . Hover . | . . . . Flight 15 | . 7 3 5 Utility 11 | 2 1 3 5 Device 4 | 1 . 2 1 Storage 1 | 1 . . . Processor 4 | . 1 1 2 Hackware 1 | . . . 1 Protection 1 | . . . 1 Artifact . | . . . . Weapon 12 | 2 1 3 6 Energy Gun 4 | 1 . 2 1 Energy Cannon 2 | . . . 2 Ballistic Gun 2 | 1 1 . . Ballistic Cannon . | . . . . Launcher 4 | . . 1 3 Special Weapon . | . . . . Impact Weapon . | . . . . Slashing Weapon . | . . . . Piercing Weapon . | . . . . Special Melee Weapon . | . . . . Unidentified Prototypes 2 | . . 1 1 Parts Lost 30 | . 7 6 17 Power 4 | . 1 1 2 Propulsion 12 | . 4 1 7 Utility 3 | . . 1 2 Weapon 11 | . 2 3 6 Highest Loss Streak 7 | . 7 5 6 To Critical Strikes . | . . . . Average Backups 4 | 1 4 4 3 Power . | . 1 . . Propulsion 1 | . 3 1 1 Utility 1 | . . 2 1 Weapon . | . . . . Tool/Special . | . . . . Unused Backups 4 | . 1 1 2 Power 1 | . . 1 . Propulsion 1 | . 1 . . Utility 1 | . . . 1 Weapon 1 | . . . 1 Tool/Special . | . . . . Average Slot Usage (%) 84 | . 89 92 69 Engine 9 | . 12 10 4 Core 1 | . . . 3 Leg 1 | . . . 5 Flight 23 | . 25 30 14 Device 8 | . 14 10 1 Processor 17 | . 5 21 27 Energy Gun 9 | . 12 8 5 Energy Cannon 1 | . . . 4 Ballistic Gun 5 | . 13 2 . Launcher 3 | . . 7 2 Peak Build Rating 25 | 7 7 21 25 Average Rating 13 | 5 6 17 18 On Entrance 7 | . 7 6 17 Naked Turns . | . . . . Heaviest Build 14 | 14 14 8 14 Greatest Support 26 | 26 26 15 23 Greatest Overweight (x) 1 | . 1 . 1 Average Overweight (x) . | . . . . Largest Inventory Capacity 8 | 8 8 5 5 Average Capacity 5 | 7 5 5 5 Most Carried 6 | 4 6 5 5 Average Carried 4 | 2 4 4 3 Final Capacity 8 | 8 5 5 5 Final Carried 5 | 3 5 5 5 Class Distribution -------------------- 76% | Mutant 20% | Scavenger-Mutant Dominant Class ---------------- Mutant | -10/Materials Mutant | -9/Materials Mutant | -8/Materials Resources | -11 -10 -9 -8 ----------- Run | Yrd Mat Mat Mat Matter Collected 866 | 277 91 305 193 Remotely . | . . . . Salvage Created 1164 | 88 258 315 503 Parts 87 | 3 28 27 29 Haulers Intercepted 3 | . . 1 2 Recyclers Shooed . | . . . . Parts Field Recycled . | . . . . Retrieved Matter . | . . . . Parts Self-Destructed . | . . . . Prevented . | . . . . Kills | -11 -10 -9 -8 ------- Run | Yrd Mat Mat Mat Combat Hostiles Destroyed 38 | . 14 12 12 Guns 16 | . 14 2 . Cannons 4 | . . . 4 AOE 17 | . . 10 7 Classes Destroyed 9 | 2 2 5 . Builder 1 | . . 1 . Tunneler 2 | 1 . 1 . Hauler 3 | . . 1 2 Recycler 1 | 1 . . . Operator 2 | . . 2 . Watcher 1 | . . 1 . Swarmer 19 | . 12 4 3 Grunt 13 | . 2 5 6 Sentry 6 | . . 3 3 Best Kill Streak 11 | 2 3 11 9 Combat Bots Only 9 | . 3 9 5 Max Kills in Single Turn 3 | 1 2 3 1 Gunslinging 1 | . 1 . . Exploded 2 | . . 2 1 Melee . | . . . . Uniques/NPCs Destroyed . | . . . . Combat | -11 -10 -9 -8 -------- Run | Yrd Mat Mat Mat Hostile Shots Fired 237 | . 97 38 102 Missed 88 | . 33 12 43 Hits 149 | . 64 26 59 Projectile 149 | . 64 26 59 Critical Strikes 7 | . . 1 6 Damage Taken 2553 | . 579 556 1418 Core 973 | . 205 184 584 Absorbed by Shields . | . . . . Regen/Repaired (Parts) 60 | . . . 60 Core Remaining (%) 57 | 100 18 54 . Volleys Fired 130 | 7 39 36 48 Largest 2 | 2 2 2 2 Hottest 120 | 70 70 70 120 Shots Fired 203 | 14 64 52 73 Gun 129 | 14 64 34 17 Cannon 41 | . . . 41 Launcher 33 | . . 18 15 Special . | . . . . Kinetic 41 | 7 32 2 . Thermal 113 | 7 32 32 42 Explosive 30 | . . 18 12 Electromagnetic 19 | . . . 19 Robot Hit Streak 10 | 8 6 10 7 Robot Miss Streak 4 | 1 4 4 4 Penetration Max . | . . . . Secondary Targets 2 | . 2 . . Max Gunslinging Chain 1 | . 1 . . Shots Hit Robots 111 | 10 37 29 35 Core Hits 71 | 3 18 28 22 Critical Kills . | . . . . Critical Parts Destroyed . | . . . . Critical Strikes 2 | . 2 . . Burn 2 | . 2 . . Melee Attacks . | . . . . Impact . | . . . . Slashing . | . . . . Piercing . | . . . . Sneak Attacks . | . . . . Combat Hostiles . | . . . . Follow-up Attacks . | . . . . Damage Inflicted 2976 | 102 391 1100 1383 Guns 842 | 102 391 186 163 Cannons 386 | . . . 386 Explosions 1747 | . . 914 833 Melee . | . . . . Ramming 1 | . . . 1 Kinetic 204 | 52 152 . . Thermal 1053 | 50 239 186 578 Explosive 1483 | . . 914 569 Electromagnetic 235 | . . . 235 Impact . | . . . . Slashing . | . . . . Piercing . | . . . . Highest Corruption . | . . . . Average Corruption . | . . . . Corruption Purged . | . . . . Corruption Blocked . | . . . . Overload Shots . | . . . . Overflow Damage 173 | . . 87 86 Projectiles . | . . . . Explosions 173 | . . 87 86 Melee . | . . . . Knockbacks . | . . . . Impact . | . . . . Kinetic . | . . . . Secondary . | . . . . Self-Inflicted Damage 498 | . . 263 235 Shots 15 | . . 6 9 Rammed 1 | . . . 1 Targets Rammed 1 | . . . 1 Kicked . | . . . . Crushed . | . . . . Highest Temperature 321 | 80 224 96 321 Average Temperature 57 | 45 60 31 74 Received Heat Transfer 459 | . 48 105 306 Effects 1 | . . . 1 Shutdowns 1 | . . . 1 Siege Activations . | . . . . Martial Activations . | . . . . Shielding Activations . | . . . . Robots Disrupted . | . . . . Combat Hostiles . | . . . . Robots Corrupted 1 | . . . 1 Combat Hostiles 1 | . . . 1 Parts Fried 1 | . . . 1 Impact Corruptions . | . . . . Robots Melted . | . . . . Combat Hostiles . | . . . . Parts Melted 2 | . 1 1 . Heat Transferred 2264 | 148 851 425 840 Parts Sabotaged . | . . . . Parts Stolen . | . . . . Parts Stripped . | . . . . Power Chain Reactions 1 | . . . 1 Alert | -11 -10 -9 -8 ------- Run | Yrd Mat Mat Mat Maximum Alert Level 1 | . . 1 1 Low Security (%) 73 | 100 100 80 33 Level 1 26 | . . 19 66 Level 2 . | . . . . Level 3 . | . . . . Level 4 . | . . . . Level 5 . | . . . . High Security . | . . . . Max Security . | . . . . Peak Influence 313 | 5 122 278 313 Initial 98 | . . 6 98 Average 103 | 1 55 63 208 Influence Increases 1500 | 10 382 492 616 Destroy 0b10 Robot/C 760 | . 280 240 240 Destroy 0b10 Robot/NC 45 | 10 . 25 10 Destroy Leader 168 | . 50 54 64 Successful Hack 50 | . 37 10 3 Disable Machine 90 | . . 30 60 Destroy Structure 207 | . . 118 89 Partial Spotted 15 | . . . 15 Lose Combat Pursuer 165 | . 15 15 135 Influence Decreases 1258 | 10 366 273 609 Entered New Map 147 | . . 10 137 Time Decay 801 | 10 286 203 302 Lost Part 300 | . 70 60 170 Lost Ally 10 | . 10 . . Squads Dispatched 8 | . 1 1 6 Investigation . | . . . . Extermination . | . . . . Reinforcement 7 | . 1 1 5 Assault . | . . . . Garrison 1 | . . . 1 Intercept . | . . . . Searches Triggered . | . . . . Construction Impeded . | . . . . Haulers Reinforced . | . . . . Active Scanning Responses . | . . . . Cargo Convoy Interrupts . | . . . . Stealth | -11 -10 -9 -8 --------- Run | Yrd Mat Mat Mat Distress Signals . | . . . . Communications Jammed . | . . . . Distress Signals . | . . . . Times Spotted 70 | . 20 21 29 Peak Tracking Total 7 | . 4 4 7 Tactical Retreats 8 | . 1 1 6 Traps | -11 -10 -9 -8 ------- Run | Yrd Mat Mat Mat Traps Triggered . | . . . . Indirectly . | . . . . Trap Hack Attempts . | . . . . Triggered . | . . . . Disarmed . | . . . . Reprogrammed . | . . . . Reused . | . . . . Traps Extracted . | . . . . Installed . | . . . . Triggered . | . . . . Machines | -11 -10 -9 -8 ---------- Run | Yrd Mat Mat Mat Machines Disabled 6 | . . 2 4 Max in Single Turn 1 | . . 1 1 Machines Repaired . | . . . . Machines Dismantled . | . . . . Machines Sabotaged . | . . . . Overloaded Fab Kills . | . . . . Hacking | -11 -10 -9 -8 --------- Run | Yrd Mat Mat Mat Machines Accessed 12 | . 6 4 2 Terminals 11 | . 6 4 1 Fabricators . | . . . . Repair Stations 1 | . . . 1 Recycling Units . | . . . . Scanalyzers . | . . . . Garrison Access . | . . . . Total Hacks 24 | . 12 7 5 Successful 15 | . 8 4 3 Failed 9 | . 4 3 2 Catastrophic . | . . . . Database Lockouts . | . . . . Manual 14 | . 9 4 1 Terminals 20 | . 12 7 1 Fabricators . | . . . . Repair Stations 4 | . . . 4 Recycling Units . | . . . . Scanalyzers . | . . . . Garrison Access . | . . . . Terminal Hacks 5 | . 2 3 . Robot Analysis 1 | . . 1 . Locate Traps 1 | . . 1 . Investigation Status 1 | . . 1 . Recall Reinforcements 1 | . 1 . . Hauler Manifests 1 | . 1 . . Fabricator Hacks . | . . . . Repair Station Hacks 3 | . . . 3 Scan Component 2 | . . . 2 Repair 1 | . . . 1 Recycling Unit Hacks . | . . . . Scanalyzer . | . . . . Garrison Access Hacks . | . . . . Unauthorized Hacks 7 | . 6 1 . Terminals 7 | . 6 1 . Assimilate 7 | . 6 1 . Fabricators . | . . . . Repair Stations . | . . . . Recycling Units . | . . . . Scanalyzers . | . . . . Garrison Access . | . . . . Data Cores Recovered . | . . . . Used . | . . . . Hacking Detections 8 | . 4 2 2 Full Trace Events 1 | . . 1 . Feedback Events . | . . . . Feedback Blocked . | . . . . Robot Schematics Acquired . | . . . . Robots Built . | . . . . Authchips . | . . . . Time . | . . . . Total Robot Build Rating . | . . . . Part Schematics Acquired . | . . . . Parts Built . | . . . . Authchips . | . . . . Time . | . . . . Total Part Build Rating . | . . . . Parts Repaired 1 | . . . 1 Time 36 | . . . 36 Parts Recycled . | . . . . Recycled Matter . | . . . . Retrieved Matter . | . . . . Retrieved Components . | . . . . Parts Scanalyzed . | . . . . Part Schematics Acquired . | . . . . Parts Damaged . | . . . . Bothacking | -11 -10 -9 -8 ------------ Run | Yrd Mat Mat Mat Used RIF Installer . | . . . . Robots Hacked . | . . . . Non-combat . | . . . . Combat . | . . . . Robot Hacks Applied . | . . . . Relay Couplers Released . | . . . . Fabnet Peak Effective % . | . . . . Robots Rewired . | . . . . Allies Hacked . | . . . . Hacks Repelled . | . . . . Allies | -11 -10 -9 -8 -------- Run | Yrd Mat Mat Mat Total Allies 2 | . 1 1 . Largest Group 1 | . 1 1 . Highest-Rated Group 10 | . 10 10 . Highest-Rated Ally 10 | . 10 10 . Total Orders 1 | . . 1 . FOLLOW 1 | . . 1 . Ally Attacks . | . . . . Total Damage . | . . . . Kills . | . . . . Allies Corrupted . | . . . . Allies Melted . | . . . . Intel | -11 -10 -9 -8 ------- Run | Yrd Mat Mat Mat Active Infowar (turns) 2110 | 32 722 686 670 Terrain 584 | . . 512 72 Seismic 912 | 32 722 158 . Machine Analysis 1347 | . . 677 670 Robot Analysis Total 1 | . . 1 . Derelict Logs Recovered . | . . . . Drone Launches . | . . . . Drone Recoveries . | . . . . Exploration | -11 -10 -9 -8 ------------- Run | Yrd Mat Mat Mat Turns Passed 2160 | 82 722 686 670 Spaces Moved 1434 | 54 337 509 534 Core 43 | 8 1 . 34 Treads . | . . . . Legs 132 | . . . 132 Wheels 76 | 46 30 . . Hover . | . . . . Flight 1183 | . 306 509 368 Fastest Speed 29 | 50 37 34 29 Average Speed 61 | 84 89 34 67 Slowest Speed 120 | 90 117 37 120 Overloaded Moves . | . . . . Propulsion Burnouts . | . . . . Robots Hopped 2 | . . 1 1 Potential Cave-ins 9 | . . . 9 Cave-ins Triggered 1 | . . . 1 Exploration Rate (%) 36 | 4 47 49 45 Regions Visited 3 Branch Regions . Pre-discovered Areas . | . . . . Known Exits Taken 2 | . 1 1 . Unknown Exits Taken 1 | 1 . . . Scrap Searched . | . . . . Spaces Dug 40 | . . . 40 Terrain Destroyed 275 | . . 153 122 Melee . | . . . . Projectile 5 | . . . 5 AOE 270 | . . 153 117 Terrain Rammed . | . . . . Walls Destroyed . | . . . . Machines Disabled . | . . . . Actions | -11 -10 -9 -8 --------- Run | Yrd Mat Mat Mat Total 2510 | 77 700 963 770 Wait 844 | . 299 394 151 Move 1427 | 53 336 506 532 Hop 2 | . . 1 1 Pick Up 44 | 10 11 9 14 Fast Attach 7 | . 2 2 3 Attach 33 | 7 5 6 15 Detach 2 | . . . 2 Swap 11 | . 3 5 3 Drop 9 | . 5 4 . Fire 130 | 7 39 36 48 Melee . | . . . . Ram 1 | . . . 1 Kick . | . . . . Crush . | . . . . Escape Stasis . | . . . . Rewire . | . . . . Trap . | . . . . Miscellaneous . | . . . . Route ------- -11/Scrapyard -10/Materials -9/Materials (discovered 2 exits: *Mat / *Min) -8/Materials History --------- Turn | Location | Event 24 | -11/Scrapyard | Discovered new exit (range 16) 83 | -11/Scrapyard | Entered Materials 303 | -10/Materials | Build established: Mutant 683 | -10/Materials | Derelicts attacked the area 724 | -10/Materials | Core integrity fell below 50% 790 | -10/Materials | Discovered new exit (range 15) 797 | -10/Materials | Core integrity fell below 20% 802 | -10/Materials | Lost 7 parts (1p4n2w) 804 | -10/Materials | Identified exit to Materials 805 | -10/Materials | Entered another Materials area 805 | -9/Materials | Evolved 2 slots: Propulsion x1, Utility x1 947 | -9/Materials | Discovered new exit (range 14) 952 | -9/Materials | Identified exit to Mines 1402 | -9/Materials | Destroyed 9 combat bots 1404 | -9/Materials | Lost 5 parts (1p1n1u2w) 1489 | -9/Materials | Discovered new exit (range 4) 1490 | -9/Materials | Identified exit to Materials 1491 | -9/Materials | Entered another Materials area 1491 | -8/Materials | Evolved 2 slots: Utility x2 1604 | -8/Materials | Garrison activated, responded to threat 1822 | -8/Materials | Crushed by falling debris 1824 | -8/Materials | Core integrity fell below 50% 1833 | -8/Materials | Core integrity fell below 20% 1855 | -8/Materials | Lost 6 parts (1p2n3w) 1949 | -8/Materials | Repaired Broken Aluminum Leg 2161 | -8/Materials | Destroyed self via exploding Fusion Modulator Last Messages --------------- Penetrated by Slug. Lgt. Nuclear Core destroyed. U-05 Engineer lays Concrete. Acquired Prototype Flight Unit. Identified Imp. VTOL Module. O-16 Technician: "IFF HANDSHAKE FAILED. SECURING TERMINAL." VTOL Module destroyed. Chain reaction triggered in Imp. Ion Engine. Y-45 Defender destroyed. Terminal disabled. Destroyed Hover Unit. Acquired 47 matter. Acquired Lgt. Armor Plating. Acquired Adv. Weight Redist. System. VTOL Module destroyed. Fusion Modulator explodes. Y-45 Defender destroyed. Hvy. EM Pulse Gun destroyed. Destroyed Hvy. EM Pulse Gun. Map ----- +----------------------------------------------------+ | !#??????????????????????????????????? | | !#??????????????????????????????????? | | !#??????????????????????????????????? | | ! !#??????????????????????????????????? | | !##??????????????????????????????????? | | ########???????????????????????????????? | | ########??? ??????????????????? | | + # #?????????????????? | | #### """"?# #?????????????????? | | #+###### ##????""""?# #?????????????????? | | ????# #?????""""?# #?????????????????? | | #####+#####??????# #?????????????????? | | / #??????# #??"""????????????? | | " # / #??????+ #?"""""???????????? | | # !! #??????# #?"""""???????????? | | " # !! """ #??????# #?"""""???????????? | | " # ! """ #??????# #??"""????????????? | | " # """ #??????# #?????????????????? | | " # [ #??????# #??###+##?????????? | | " # #??????# #### #?????????? | | ? #####+############ #?????????? | | ? ???# #?????????? | | ? ???# #### #?????????? | | ?##???# ##### ##?????????? | | ??????# #########;##;#;;#;# # #??????????? | | ??????# ????????# @ # #??????????? | | ??????# ????????# # #??????????? | | ??????# ????????# [ ####???????? | | ??????# ???????#; ! ! #???????? | | ?????? ???????## %[ [ #???????? | | ??????#????????#; [ # ####???????? | | ???????????????## ####??????????? | | ????????????????#;;;###;;;###?????????????? | | ????????????????###????##?????????????????? | | | | | | | | | | | | | | | | | | | | | | | | | | | | | | | | | +----------------------------------------------------+ Best States ------------- Heat Dissipation 31 Energy Generation 14 Energy Capacity 250 Matter Stores 300 Matter Capacity 300 Sight Range 16 Terrain Scan Range 14 Terrain Scan Density 85 Evasion (%) 64 Offensive Hacking 10 Item Schematics ----------------- None Robot Schematics ------------------ None Fabricated ------------ Nothing Repaired ---------- Aluminum Leg | 33% | -8/Materials | Broken Alien Tech Used ----------------- None Achievements -------------- Remodeling Shopping List Unlikely Earthworm Challenges ------------ None Game ------ Seed DirtyThermicScrapsphere Manual? 0 Play Time 00:34:20 Cumulative 14.5 hours Start 2025.06.01 @ 14:00:25 End 2025.06.01 @ 14:32:37 Sessions 1 Manual Loads 0 Difficulty Rogue Special Mode None Game No. 24 Rogue 24 Adventurer 0 Explorer 0 Win Type - Total 0 Types 0/0/0/0/0/0/0/0/0/0 Lore% 20 Gallery% 20 Achievement% 18 Wizard Run 0 Options --------- Layout 2 ASCII 0 Keyboard 0 Movement Numpad Keybinds 0 Fullscreen 1 Font 24/Proggy Map View 50x44 Zoom Use 0% Tactical HUD 0 Map Filters NONE Filters NONE Steam 1 RUN: e0a6bd54-9f8b-4075-961d-b8d055e2987d